[Event "Titled Tuesday Blitz November 14 Early 2023"]
[White "vovasev"]
[Black "Andrej2004"]
[WhiteElo "2130"]
[BlackElo "2556"]
[Result "0-1"]
[Round "1"]
[TimeControl "180+1"]
[Date "2023.11.14"]
[WhiteClock "0:01:49"]
[BlackClock "0:01:28"]
[Board "225"]

1. e4 {[%clk 0:02:59]}  b6 {[%clk 0:02:57]} 2. d4 {[%clk 0:02:59]}  Bb7 {[%clk 0:02:57]} 3. Nc3 {[%clk 0:02:58]}  g6 {[%clk 0:02:58]} 4. Bd3 {[%clk 0:02:58]}  Bg7 {[%clk 0:02:58]} 5. Nf3 {[%clk 0:02:58]}  d6 {[%clk 0:02:59]} 6. O-O {[%clk 0:02:57]}  e5 {[%clk 0:02:59]} 7. dxe5 {[%clk 0:02:57]}  dxe5 {[%clk 0:02:59]} 8. Bb5+ {[%clk 0:02:56]}  c6 {[%clk 0:02:59]} 9. Qxd8+ {[%clk 0:02:56]}  Kxd8 {[%clk 0:03:00]} 10. Bc4 {[%clk 0:02:54]}  Nd7 {[%clk 0:02:59]} 11. Bxf7 {[%clk 0:02:53]}  Ke7 {[%clk 0:02:50]} 12. Bb3 {[%clk 0:02:50]}  Ngf6 {[%clk 0:02:49]} 13. Bg5 {[%clk 0:02:49]}  Rad8 {[%clk 0:02:47]} 14. Rad1 {[%clk 0:02:48]}  h6 {[%clk 0:02:44]} 15. Bc1 {[%clk 0:02:41]}  g5 {[%clk 0:02:42]} 16. h3 {[%clk 0:02:41]}  Nh5 {[%clk 0:02:31]} 17. Ne2 {[%clk 0:02:38]}  Nc5 {[%clk 0:02:30]} 18. Rfe1 {[%clk 0:02:32]}  Rxd1 {[%clk 0:02:21]} 19. Rxd1 {[%clk 0:02:31]}  Nxe4 {[%clk 0:02:21]} 20. Re1 {[%clk 0:02:30]}  c5 {[%clk 0:02:06]} 21. g4 {[%clk 0:02:29]}  Nf4 {[%clk 0:01:56]} 22. Nxf4 {[%clk 0:02:28]}  gxf4 {[%clk 0:01:57]} 23. Nxe5 {[%clk 0:02:24]}  Bxe5 {[%clk 0:01:55]} 24. f3 {[%clk 0:02:24]}  Bd4+ {[%clk 0:01:46]} 25. Kg2 {[%clk 0:02:23]}  Rf8 {[%clk 0:01:46]} 26. fxe4 {[%clk 0:02:17]}  f3+ {[%clk 0:01:46]} 27. Kf1 {[%clk 0:02:13]}  f2 {[%clk 0:01:28]} 28. Re2 {[%clk 0:02:13]}  Ba6 {[%clk 0:01:28]} 29. c4 {[%clk 0:02:12]}  b5 {[%clk 0:01:29]} 30. Be3 {[%clk 0:02:03]}  bxc4 {[%clk 0:01:28]} 31. Bxd4 {[%clk 0:02:02]}  cxd4 {[%clk 0:01:29]} 32. Rxf2 {[%clk 0:01:49]}  cxb3+ {[%clk 0:01:28]} 0-1


[Site "https://www.chess.com"]

[Event "Titled Tuesday Blitz November 14 Early 2023"]
[White "Smirnov, Timofey"]
[Black "Lund, Gunnar"]
[WhiteFideId "24176427"]
[BlackFideId "1520814"]
[WhiteElo "2093"]
[BlackElo "2555"]
[Result "0-1"]
[Round "1"]
[TimeControl "180+1"]
[Date "2023.11.14"]
[WhiteClock "0:00:00"]
[BlackClock "0:01:43"]
[Board "227"]

1. d4 {[%clk 0:03:00]}  d6 {[%clk 0:02:48]} 2. Bf4 {[%clk 0:02:59]}  Nf6 {[%clk 0:02:37]} 3. Nc3 {[%clk 0:02:58]}  g6 {[%clk 0:02:35]} 4. e4 {[%clk 0:02:58]}  Bg7 {[%clk 0:02:35]} 5. e5 {[%clk 0:02:59]}  Nfd7 {[%clk 0:02:33]} 6. Nf3 {[%clk 0:02:51]}  O-O {[%clk 0:02:31]} 7. Bc4 {[%clk 0:02:48]}  c6 {[%clk 0:02:29]} 8. exd6 {[%clk 0:02:46]}  Nb6 {[%clk 0:02:29]} 9. dxe7 {[%clk 0:02:44]}  Qxe7+ {[%clk 0:02:30]} 10. Qe2 {[%clk 0:02:43]}  Re8 {[%clk 0:02:29]} 11. Qxe7 {[%clk 0:02:41]}  Rxe7+ {[%clk 0:02:30]} 12. Be2 {[%clk 0:02:42]}  Bf5 {[%clk 0:02:29]} 13. O-O-O {[%clk 0:02:31]}  N8d7 {[%clk 0:02:29]} 14. Rhe1 {[%clk 0:02:15]}  Rae8 {[%clk 0:02:25]} 15. Be3 {[%clk 0:01:41]}  Nf6 {[%clk 0:02:15]} 16. h3 {[%clk 0:01:40]}  Nfd5 {[%clk 0:02:14]} 17. Nxd5 {[%clk 0:01:33]}  Nxd5 {[%clk 0:02:15]} 18. Nh4 {[%clk 0:01:13]}  Bd7 {[%clk 0:02:04]} 19. Bc4 {[%clk 0:00:34]}  Nxe3 {[%clk 0:02:02]} 20. fxe3 {[%clk 0:00:33]}  Rxe3 {[%clk 0:02:03]} 21. Rxe3 {[%clk 0:00:34]}  Rxe3 {[%clk 0:02:04]} 22. Kd2 {[%clk 0:00:32]}  Bh6 {[%clk 0:02:02]} 23. Bxf7+ {[%clk 0:00:14]}  Kxf7 {[%clk 0:02:00]} 24. Rf1+ {[%clk 0:00:14]}  Kg7 {[%clk 0:01:59]} 25. Kd1 {[%clk 0:00:12]}  Re4 {[%clk 0:01:56]} 26. Nf3 {[%clk 0:00:12]}  Bf4 {[%clk 0:01:54]} 27. c3 {[%clk 0:00:12]}  Bd6 {[%clk 0:01:51]} 28. Ng5 {[%clk 0:00:11]}  Re7 {[%clk 0:01:50]} 29. Nf3 {[%clk 0:00:10]}  Bf5 {[%clk 0:01:48]} 30. g4 {[%clk 0:00:10]}  Be4 {[%clk 0:01:48]} 31. Nd2 {[%clk 0:00:09]}  Bd5 {[%clk 0:01:47]} 32. c4 {[%clk 0:00:08]}  Bg8 {[%clk 0:01:47]} 33. c5 {[%clk 0:00:08]}  Bg3 {[%clk 0:01:46]} 34. Rf3 {[%clk 0:00:08]}  Bh4 {[%clk 0:01:45]} 35. a3 {[%clk 0:00:07]}  Bg5 {[%clk 0:01:44]} 36. Kc2 {[%clk 0:00:03]}  Bxd2 {[%clk 0:01:43]} 37. Kxd2 {[%clk 0:00:04]}  Bd5 {[%clk 0:01:44]} 38. Rf2 {[%clk 0:00:03]}  h5 {[%clk 0:01:42]} 39. gxh5 {[%clk 0:00:03]}  gxh5 {[%clk 0:01:43]} 40. Rf1 {[%clk 0:00:04]}  Re4 {[%clk 0:01:43]} 41. Rg1+ {[%clk 0:00:04]}  Kf6 {[%clk 0:01:43]} 42. Rf1+ {[%clk 0:00:04]}  Ke7 {[%clk 0:01:43]} 43. Kd3 {[%clk 0:00:05]}  Rh4 {[%clk 0:01:43]} 44. Re1+ {[%clk 0:00:04]}  Be6 {[%clk 0:01:43]} 45. Re3 {[%clk 0:00:04]}  Rxh3 {[%clk 0:01:43]} 46. Rf3 {[%clk 0:00:00]}  Rxf3+ {[%clk 0:01:43]} 0-1


[Site "https://www.chess.com"]

[Event "Titled Tuesday Blitz November 14 Early 2023"]
[White "Brunner, Nicolas"]
[Black "Pasmendjambvirgulptipon98"]
[WhiteFideId "620246"]
[WhiteElo "2554"]
[BlackElo "2084"]
[Result "1-0"]
[Round "1"]
[TimeControl "180+1"]
[Date "2023.11.14"]
[WhiteClock "0:01:04"]
[BlackClock "0:00:21"]
[Board "228"]

1. Nf3 {[%clk 0:03:00]}  Nf6 {[%clk 0:02:57]} 2. g3 {[%clk 0:03:01]}  d6 {[%clk 0:02:54]} 3. d4 {[%clk 0:02:58]}  g6 {[%clk 0:02:52]} 4. Bg2 {[%clk 0:02:58]}  Bg7 {[%clk 0:02:53]} 5. b3 {[%clk 0:02:58]}  c5 {[%clk 0:02:51]} 6. Bb2 {[%clk 0:02:56]}  cxd4 {[%clk 0:02:48]} 7. Nxd4 {[%clk 0:02:56]}  O-O {[%clk 0:02:48]} 8. O-O {[%clk 0:02:55]}  Qc7 {[%clk 0:02:44]} 9. c4 {[%clk 0:02:55]}  Nc6 {[%clk 0:02:41]} 10. Nc3 {[%clk 0:02:42]}  a6 {[%clk 0:02:37]} 11. e3 {[%clk 0:02:38]}  Bd7 {[%clk 0:02:25]} 12. h3 {[%clk 0:02:36]}  Rac8 {[%clk 0:02:20]} 13. a4 {[%clk 0:02:33]}  Rfd8 {[%clk 0:02:14]} 14. Rc1 {[%clk 0:02:24]}  Be6 {[%clk 0:01:43]} 15. Nd5 {[%clk 0:02:21]}  Qb8 {[%clk 0:01:38]} 16. Nxc6 {[%clk 0:01:59]}  bxc6 {[%clk 0:01:33]} 17. Nxe7+ {[%clk 0:01:59]}  Kf8 {[%clk 0:01:30]} 18. Nxc6 {[%clk 0:01:53]}  Rxc6 {[%clk 0:01:30]} 19. Bxc6 {[%clk 0:01:52]}  Qc8 {[%clk 0:01:30]} 20. Bg2 {[%clk 0:01:51]}  Bxh3 {[%clk 0:01:30]} 21. Ba3 {[%clk 0:01:48]}  Bxg2 {[%clk 0:01:24]} 22. Kxg2 {[%clk 0:01:48]}  Qc6+ {[%clk 0:01:24]} 23. Qf3 {[%clk 0:01:46]}  Qb6 {[%clk 0:01:22]} 24. e4 {[%clk 0:01:42]}  Nd7 {[%clk 0:01:20]} 25. Rfd1 {[%clk 0:01:39]}  Ne5 {[%clk 0:01:20]} 26. Qe3 {[%clk 0:01:33]}  Qc6 {[%clk 0:01:14]} 27. f3 {[%clk 0:01:32]}  Ke7 {[%clk 0:01:12]} 28. c5 {[%clk 0:01:28]}  d5 {[%clk 0:00:59]} 29. exd5 {[%clk 0:01:27]}  Rxd5 {[%clk 0:01:00]} 30. Rxd5 {[%clk 0:01:26]}  Qxd5 {[%clk 0:01:01]} 31. c6+ {[%clk 0:01:26]}  Kd8 {[%clk 0:01:00]} 32. c7+ {[%clk 0:01:25]}  Kc8 {[%clk 0:01:00]} 33. Qe4 {[%clk 0:01:10]}  Qd2+ {[%clk 0:00:59]} 34. Kh3 {[%clk 0:01:07]}  Qd7+ {[%clk 0:00:21]} 35. g4 {[%clk 0:01:04]} 1-0


[Site "https://www.chess.com"]

[Event "Titled Tuesday Blitz November 14 Early 2023"]
[White "Politov, Pavel Y."]
[Black "Arngrimsson, Dagur"]
[WhiteFideId "24110515"]
[BlackFideId "2301288"]
[WhiteElo "2077"]
[BlackElo "2552"]
[Result "0-1"]
[Round "1"]
[TimeControl "180+1"]
[Date "2023.11.14"]
[WhiteClock "0:00:04"]
[BlackClock "0:00:53"]
[Board "229"]

1. d4 {[%clk 0:02:55]}  d5 {[%clk 0:02:58]} 2. c4 {[%clk 0:02:54]}  c6 {[%clk 0:02:59]} 3. Nc3 {[%clk 0:02:54]}  Nf6 {[%clk 0:02:58]} 4. Nf3 {[%clk 0:02:50]}  dxc4 {[%clk 0:02:57]} 5. a4 {[%clk 0:02:49]}  Bf5 {[%clk 0:02:57]} 6. e3 {[%clk 0:02:47]}  e6 {[%clk 0:02:57]} 7. Bxc4 {[%clk 0:02:46]}  Bb4 {[%clk 0:02:58]} 8. O-O {[%clk 0:02:44]}  O-O {[%clk 0:02:57]} 9. Nh4 {[%clk 0:02:40]}  Bg6 {[%clk 0:02:56]} 10. Nxg6 {[%clk 0:02:39]}  hxg6 {[%clk 0:02:56]} 11. Qb3 {[%clk 0:02:38]}  Qe7 {[%clk 0:02:55]} 12. Bd2 {[%clk 0:02:29]}  a5 {[%clk 0:02:54]} 13. Rfe1 {[%clk 0:02:25]}  Nbd7 {[%clk 0:02:52]} 14. e4 {[%clk 0:02:25]}  e5 {[%clk 0:02:51]} 15. d5 {[%clk 0:02:18]}  Nb6 {[%clk 0:02:43]} 16. dxc6 {[%clk 0:02:15]}  bxc6 {[%clk 0:02:44]} 17. Bf1 {[%clk 0:02:13]}  Rfd8 {[%clk 0:02:41]} 18. Rad1 {[%clk 0:02:12]}  Rab8 {[%clk 0:02:31]} 19. Qc2 {[%clk 0:02:06]}  Qe6 {[%clk 0:02:13]} 20. Be3 {[%clk 0:01:45]}  Bxc3 {[%clk 0:01:58]} 21. bxc3 {[%clk 0:01:41]}  Nc4 {[%clk 0:01:56]} 22. Rxd8+ {[%clk 0:01:07]}  Rxd8 {[%clk 0:01:55]} 23. Bxc4 {[%clk 0:00:59]}  Qxc4 {[%clk 0:01:56]} 24. Bb6 {[%clk 0:00:59]}  Rd3 {[%clk 0:01:48]} 25. Bxa5 {[%clk 0:00:52]}  Nxe4 {[%clk 0:01:48]} 26. Qe2 {[%clk 0:00:36]}  Nxc3 {[%clk 0:01:26]} 27. Bxc3 {[%clk 0:00:26]}  Qxc3 {[%clk 0:01:27]} 28. Rd1 {[%clk 0:00:22]}  Rd4 {[%clk 0:01:19]} 29. Rb1 {[%clk 0:00:16]}  Rxa4 {[%clk 0:01:13]} 30. h3 {[%clk 0:00:08]}  Ra1 {[%clk 0:01:11]} 31. Rxa1 {[%clk 0:00:07]}  Qxa1+ {[%clk 0:01:12]} 32. Kh2 {[%clk 0:00:08]}  Qd4 {[%clk 0:01:10]} 33. Qc2 {[%clk 0:00:07]}  c5 {[%clk 0:01:09]} 34. g3 {[%clk 0:00:06]}  c4 {[%clk 0:01:08]} 35. Kg2 {[%clk 0:00:06]}  c3 {[%clk 0:01:03]} 36. Kh2 {[%clk 0:00:05]}  Qd2 {[%clk 0:01:03]} 37. Qa4 {[%clk 0:00:04]}  Qxf2+ {[%clk 0:01:02]} 38. Kh1 {[%clk 0:00:05]}  c2 {[%clk 0:00:55]} 39. Qe8+ {[%clk 0:00:04]}  Kh7 {[%clk 0:00:54]} 40. Qxe5 {[%clk 0:00:04]}  c1=Q+ {[%clk 0:00:53]} 41. Qe1 {[%clk 0:00:04]}  Qcxe1# {[%clk 0:00:53]} 0-1


[Site "https://www.chess.com"]

[Event "Titled Tuesday Blitz November 14 Early 2023"]
[White "Cervantes Landeiro, Thalia"]
[Black "Winkels, Marcel"]
[WhiteFideId "3520498"]
[BlackFideId "1003887"]
[WhiteElo "2549"]
[BlackElo "2059"]
[Result "1-0"]
[Round "1"]
[TimeControl "180+1"]
[Date "2023.11.14"]
[WhiteClock "0:02:21"]
[BlackClock "0:01:47"]
[Board "230"]

1. d4 {[%clk 0:03:00]}  Nf6 {[%clk 0:02:58]} 2. c4 {[%clk 0:03:00]}  g6 {[%clk 0:02:59]} 3. Nc3 {[%clk 0:03:00]}  d5 {[%clk 0:02:59]} 4. cxd5 {[%clk 0:03:00]}  Nxd5 {[%clk 0:02:59]} 5. e4 {[%clk 0:03:00]}  Nxc3 {[%clk 0:03:00]} 6. bxc3 {[%clk 0:03:01]}  Bg7 {[%clk 0:02:59]} 7. Bc4 {[%clk 0:03:01]}  c5 {[%clk 0:02:56]} 8. Ne2 {[%clk 0:03:02]}  O-O {[%clk 0:02:52]} 9. O-O {[%clk 0:02:58]}  b6 {[%clk 0:02:46]} 10. Bd5 {[%clk 0:02:53]}  e6 {[%clk 0:02:35]} 11. Bxa8 {[%clk 0:02:49]}  Ba6 {[%clk 0:02:36]} 12. Bf4 {[%clk 0:02:33]}  Nd7 {[%clk 0:02:22]} 13. Bc6 {[%clk 0:02:32]}  cxd4 {[%clk 0:02:17]} 14. cxd4 {[%clk 0:02:31]}  Qc8 {[%clk 0:02:15]} 15. Rc1 {[%clk 0:02:30]}  Rd8 {[%clk 0:02:06]} 16. Bb5 {[%clk 0:02:22]}  Qb7 {[%clk 0:01:47]} 17. Rc7 {[%clk 0:02:21]} 1-0


[Site "https://www.chess.com"]

[Event "Titled Tuesday Blitz November 14 Early 2023"]
[White "RodokininEV"]
[Black "taleslascando"]
[WhiteElo "2548"]
[BlackElo "2012"]
[Result "1-0"]
[Round "1"]
[TimeControl "180+1"]
[Date "2023.11.14"]
[WhiteClock "0:01:26"]
[BlackClock "0:00:00"]
[Board "232"]

1. d4 {[%clk 0:03:00]}  Nf6 {[%clk 0:02:59]} 2. c4 {[%clk 0:03:00]}  e6 {[%clk 0:02:59]} 3. Nf3 {[%clk 0:02:58]}  d5 {[%clk 0:02:52]} 4. Nc3 {[%clk 0:02:57]}  Bb4 {[%clk 0:02:49]} 5. Qa4+ {[%clk 0:02:57]}  Nc6 {[%clk 0:02:49]} 6. e3 {[%clk 0:02:57]}  O-O {[%clk 0:02:40]} 7. Bd2 {[%clk 0:02:57]}  Re8 {[%clk 0:02:19]} 8. Bd3 {[%clk 0:02:49]}  dxc4 {[%clk 0:02:12]} 9. Bxc4 {[%clk 0:02:50]}  e5 {[%clk 0:02:09]} 10. dxe5 {[%clk 0:02:36]}  Ng4 {[%clk 0:01:31]} 11. a3 {[%clk 0:02:29]}  Ba5 {[%clk 0:01:02]} 12. Be2 {[%clk 0:02:17]}  Ngxe5 {[%clk 0:00:58]} 13. Nxe5 {[%clk 0:02:17]}  Rxe5 {[%clk 0:00:56]} 14. Bf3 {[%clk 0:02:11]}  Nd4 {[%clk 0:00:28]} 15. O-O-O {[%clk 0:02:00]}  Nxf3 {[%clk 0:00:16]} 16. gxf3 {[%clk 0:02:01]}  Bd7 {[%clk 0:00:12]} 17. Qd4 {[%clk 0:01:58]}  Qe8 {[%clk 0:00:10]} 18. e4 {[%clk 0:01:56]}  Rd8 {[%clk 0:00:09]} 19. Bf4 {[%clk 0:01:50]}  Re7 {[%clk 0:00:07]} 20. Rhg1 {[%clk 0:01:50]}  g6 {[%clk 0:00:04]} 21. Bh6 {[%clk 0:01:49]}  f5 {[%clk 0:00:03]} 22. exf5 {[%clk 0:01:45]}  Bb6 {[%clk 0:00:03]} 23. Qf6 {[%clk 0:01:37]}  Bxf5 {[%clk 0:00:00]} 24. Qxf5 {[%clk 0:01:26]} 1-0


[Site "https://www.chess.com"]

[Event "Titled Tuesday Blitz November 14 Early 2023"]
[White "LeoLV10"]
[Black "Castillo Pena, Patricia Evarista"]
[BlackFideId "6412106"]
[WhiteElo "2546"]
[BlackElo "2000"]
[Result "1-0"]
[Round "1"]
[TimeControl "180+1"]
[Date "2023.11.14"]
[WhiteClock "0:00:19"]
[BlackClock "0:00:08"]
[Board "234"]

1. e4 {[%clk 0:03:00]}  c5 {[%clk 0:02:59]} 2. Nf3 {[%clk 0:03:00]}  d6 {[%clk 0:02:58]} 3. d4 {[%clk 0:03:01]}  cxd4 {[%clk 0:02:59]} 4. Nxd4 {[%clk 0:03:01]}  Nf6 {[%clk 0:02:59]} 5. Nc3 {[%clk 0:03:02]}  a6 {[%clk 0:02:59]} 6. Bg5 {[%clk 0:03:02]}  e6 {[%clk 0:02:58]} 7. f4 {[%clk 0:03:00]}  h6 {[%clk 0:02:57]} 8. Bh4 {[%clk 0:03:00]}  Qb6 {[%clk 0:02:57]} 9. a3 {[%clk 0:03:00]}  Be7 {[%clk 0:02:53]} 10. Bf2 {[%clk 0:03:00]}  Qc7 {[%clk 0:02:53]} 11. Qf3 {[%clk 0:02:55]}  Nbd7 {[%clk 0:02:52]} 12. O-O-O {[%clk 0:02:45]}  b5 {[%clk 0:02:51]} 13. g4 {[%clk 0:02:37]}  Bb7 {[%clk 0:02:47]} 14. h4 {[%clk 0:02:31]}  d5 {[%clk 0:02:41]} 15. e5 {[%clk 0:02:19]}  Ne4 {[%clk 0:02:39]} 16. Nxe4 {[%clk 0:02:14]}  dxe4 {[%clk 0:02:39]} 17. Qe3 {[%clk 0:02:14]}  Rc8 {[%clk 0:02:34]} 18. Bg2 {[%clk 0:01:47]}  Nc5 {[%clk 0:02:17]} 19. Kb1 {[%clk 0:01:38]}  O-O {[%clk 0:02:00]} 20. h5 {[%clk 0:01:37]}  Rfd8 {[%clk 0:01:59]} 21. g5 {[%clk 0:01:29]}  Na4 {[%clk 0:01:32]} 22. Rd2 {[%clk 0:00:58]}  b4 {[%clk 0:01:21]} 23. gxh6 {[%clk 0:00:53]}  bxa3 {[%clk 0:01:20]} 24. Qg3 {[%clk 0:00:48]}  Bf8 {[%clk 0:01:13]} 25. hxg7 {[%clk 0:00:40]}  Bc5 {[%clk 0:01:06]} 26. h6 {[%clk 0:00:19]}  Kh7 {[%clk 0:00:51]} 27. Qe3 {[%clk 0:00:19]}  Rxd4 {[%clk 0:00:42]} 28. Rxd4 {[%clk 0:00:16]}  Bxd4 {[%clk 0:00:39]} 29. Bxe4+ {[%clk 0:00:17]}  Bxe4 {[%clk 0:00:29]} 30. Qxe4+ {[%clk 0:00:17]}  f5 {[%clk 0:00:21]} 31. exf6+ {[%clk 0:00:18]}  Kg8 {[%clk 0:00:21]} 32. h7+ {[%clk 0:00:18]}  Kf7 {[%clk 0:00:21]} 33. g8=Q+ {[%clk 0:00:18]}  Rxg8 {[%clk 0:00:20]} 34. hxg8=Q+ {[%clk 0:00:19]}  Kxg8 {[%clk 0:00:08]} 35. Qg6+ {[%clk 0:00:19]} 1-0


[Site "https://www.chess.com"]

[Event "Titled Tuesday Blitz November 14 Early 2023"]
[White "IsaqueGoncalvesSanto"]
[Black "Leyva Proenza, Richard"]
[BlackFideId "3500985"]
[WhiteElo "1882"]
[BlackElo "2546"]
[Result "0-1"]
[Round "1"]
[TimeControl "180+1"]
[Date "2023.11.14"]
[WhiteClock "0:00:00"]
[BlackClock "0:00:17"]
[Board "235"]

1. d4 {[%clk 0:02:57]}  Nf6 {[%clk 0:02:58]} 2. c4 {[%clk 0:02:57]}  g6 {[%clk 0:02:57]} 3. Nc3 {[%clk 0:02:57]}  Bg7 {[%clk 0:02:57]} 4. e4 {[%clk 0:02:58]}  d6 {[%clk 0:02:58]} 5. f3 {[%clk 0:02:58]}  O-O {[%clk 0:02:57]} 6. Be3 {[%clk 0:02:58]}  e5 {[%clk 0:02:57]} 7. d5 {[%clk 0:02:58]}  Nh5 {[%clk 0:02:56]} 8. g4 {[%clk 0:02:53]}  Nf4 {[%clk 0:02:50]} 9. h4 {[%clk 0:02:50]}  f5 {[%clk 0:02:45]} 10. gxf5 {[%clk 0:02:49]}  gxf5 {[%clk 0:02:39]} 11. Nge2 {[%clk 0:02:37]}  Nd7 {[%clk 0:02:26]} 12. Nxf4 {[%clk 0:02:27]}  exf4 {[%clk 0:02:25]} 13. Bxf4 {[%clk 0:02:13]}  fxe4 {[%clk 0:02:16]} 14. Bg5 {[%clk 0:02:13]}  Qe8 {[%clk 0:02:11]} 15. fxe4 {[%clk 0:02:03]}  Nc5 {[%clk 0:02:02]} 16. Bg2 {[%clk 0:01:56]}  Bxc3+ {[%clk 0:01:32]} 17. bxc3 {[%clk 0:01:55]}  Nxe4 {[%clk 0:01:32]} 18. Qd4 {[%clk 0:00:44]}  Nxg5+ {[%clk 0:01:24]} 19. Kd2 {[%clk 0:00:41]}  Nf7 {[%clk 0:00:48]} 20. Rae1 {[%clk 0:00:37]}  Ne5 {[%clk 0:00:46]} 21. Rhg1 {[%clk 0:00:35]}  Kh8 {[%clk 0:00:45]} 22. c5 {[%clk 0:00:34]}  Bd7 {[%clk 0:00:42]} 23. c6 {[%clk 0:00:29]}  bxc6 {[%clk 0:00:39]} 24. dxc6 {[%clk 0:00:27]}  Bf5 {[%clk 0:00:34]} 25. c4 {[%clk 0:00:09]}  Qe6 {[%clk 0:00:33]} 26. Kc1 {[%clk 0:00:07]}  Rab8 {[%clk 0:00:31]} 27. Bd5 {[%clk 0:00:04]}  Qh6+ {[%clk 0:00:26]} 28. Kd1 {[%clk 0:00:01]}  Rb1+ {[%clk 0:00:23]} 29. Ke2 {[%clk 0:00:01]}  Qh5+ {[%clk 0:00:20]} 30. Kd2 {[%clk 0:00:00]}  Rxe1 {[%clk 0:00:17]} 0-1


[Site "https://www.chess.com"]

[Event "Titled Tuesday Blitz November 14 Early 2023"]
[White "Villafane Gomez, Jaime"]
[Black "Aggelis, Nikolaos"]
[WhiteFideId "4426517"]
[BlackFideId "4213220"]
[WhiteElo "1741"]
[BlackElo "2542"]
[Result "0-1"]
[Round "1"]
[TimeControl "180+1"]
[Date "2023.11.14"]
[WhiteClock "0:00:13"]
[BlackClock "0:01:26"]
[Board "239"]

1. e4 {[%clk 0:02:59]}  c6 {[%clk 0:02:57]} 2. d4 {[%clk 0:02:57]}  d5 {[%clk 0:02:58]} 3. exd5 {[%clk 0:02:50]}  cxd5 {[%clk 0:02:59]} 4. c4 {[%clk 0:02:50]}  Nf6 {[%clk 0:02:58]} 5. Nc3 {[%clk 0:02:49]}  g6 {[%clk 0:02:58]} 6. Nf3 {[%clk 0:02:49]}  Bg7 {[%clk 0:02:59]} 7. Qb3 {[%clk 0:02:48]}  O-O {[%clk 0:03:00]} 8. Bg5 {[%clk 0:02:47]}  dxc4 {[%clk 0:02:59]} 9. Bxc4 {[%clk 0:02:45]}  Nc6 {[%clk 0:02:59]} 10. Rd1 {[%clk 0:02:23]}  Na5 {[%clk 0:02:55]} 11. Qb4 {[%clk 0:02:19]}  Nxc4 {[%clk 0:02:51]} 12. Qxc4 {[%clk 0:02:18]}  Bg4 {[%clk 0:02:50]} 13. Qd3 {[%clk 0:02:10]}  Qb6 {[%clk 0:02:48]} 14. Rd2 {[%clk 0:02:01]}  Bf5 {[%clk 0:02:44]} 15. Qe3 {[%clk 0:01:55]}  Qa6 {[%clk 0:02:33]} 16. Qe2 {[%clk 0:01:52]}  Qxe2+ {[%clk 0:02:32]} 17. Rxe2 {[%clk 0:01:50]}  e6 {[%clk 0:02:31]} 18. Rd2 {[%clk 0:01:40]}  Ne4 {[%clk 0:02:30]} 19. Nxe4 {[%clk 0:01:39]}  Bxe4 {[%clk 0:02:31]} 20. O-O {[%clk 0:01:16]}  Rfc8 {[%clk 0:02:24]} 21. Re1 {[%clk 0:01:11]}  Bd5 {[%clk 0:02:18]} 22. b3 {[%clk 0:01:09]}  Bxf3 {[%clk 0:02:13]} 23. gxf3 {[%clk 0:01:08]}  Rc3 {[%clk 0:02:14]} 24. d5 {[%clk 0:01:01]}  exd5 {[%clk 0:02:11]} 25. Rxd5 {[%clk 0:01:01]}  Rxf3 {[%clk 0:02:11]} 26. Be3 {[%clk 0:01:00]}  Rf6 {[%clk 0:02:01]} 27. Bd4 {[%clk 0:00:58]}  Rf4 {[%clk 0:01:55]} 28. Bxg7 {[%clk 0:00:57]}  Kxg7 {[%clk 0:01:55]} 29. Re7 {[%clk 0:00:55]}  b6 {[%clk 0:01:54]} 30. Rdd7 {[%clk 0:00:55]}  a5 {[%clk 0:01:53]} 31. Rb7 {[%clk 0:00:54]}  Rd8 {[%clk 0:01:43]} 32. Rxb6 {[%clk 0:00:49]}  Rd2 {[%clk 0:01:43]} 33. Kf1 {[%clk 0:00:39]}  Rfxf2+ {[%clk 0:01:42]} 34. Ke1 {[%clk 0:00:39]}  Rxa2 {[%clk 0:01:38]} 35. Rbb7 {[%clk 0:00:38]}  Rf5 {[%clk 0:01:36]} 36. Ra7 {[%clk 0:00:36]}  Rxh2 {[%clk 0:01:36]} 37. Reb7 {[%clk 0:00:22]}  h5 {[%clk 0:01:35]} 38. Rb8 {[%clk 0:00:19]}  h4 {[%clk 0:01:29]} 39. Rba8 {[%clk 0:00:18]}  Ra2 {[%clk 0:01:28]} 40. b4 {[%clk 0:00:16]}  h3 {[%clk 0:01:28]} 41. Rxa5 {[%clk 0:00:15]}  Rfxa5 {[%clk 0:01:25]} 42. bxa5 {[%clk 0:00:13]}  h2 {[%clk 0:01:25]} 43. Kf1 {[%clk 0:00:13]}  h1=Q# {[%clk 0:01:26]} 0-1


[Site "https://www.chess.com"]

[Event "Titled Tuesday Blitz November 14 Early 2023"]
[White "Lima, Kleyton Alcantara"]
[Black "dumbernugget"]
[WhiteFideId "22718397"]
[WhiteElo "2542"]
[BlackElo "1712"]
[Result "1-0"]
[Round "1"]
[TimeControl "180+1"]
[Date "2023.11.14"]
[WhiteClock "0:00:37"]
[BlackClock "0:00:04"]
[Board "240"]

1. e4 {[%clk 0:02:59]}  c5 {[%clk 0:02:59]} 2. Nf3 {[%clk 0:02:59]}  d6 {[%clk 0:02:58]} 3. d4 {[%clk 0:03:00]}  cxd4 {[%clk 0:02:58]} 4. Nxd4 {[%clk 0:03:00]}  Nf6 {[%clk 0:02:58]} 5. Nc3 {[%clk 0:03:01]}  g6 {[%clk 0:02:58]} 6. Be3 {[%clk 0:03:01]}  Bg7 {[%clk 0:02:58]} 7. f3 {[%clk 0:03:01]}  O-O {[%clk 0:02:58]} 8. Qd2 {[%clk 0:02:58]}  Nc6 {[%clk 0:02:57]} 9. O-O-O {[%clk 0:02:58]}  d5 {[%clk 0:02:56]} 10. Nxc6 {[%clk 0:02:52]}  bxc6 {[%clk 0:02:55]} 11. Bc4 {[%clk 0:02:53]}  e6 {[%clk 0:02:26]} 12. Bb3 {[%clk 0:02:44]}  Qa5 {[%clk 0:02:15]} 13. Kb1 {[%clk 0:02:29]}  Qc7 {[%clk 0:01:48]} 14. h4 {[%clk 0:02:28]}  h5 {[%clk 0:01:28]} 15. g4 {[%clk 0:02:26]}  a5 {[%clk 0:00:43]} 16. e5 {[%clk 0:02:14]}  Nd7 {[%clk 0:00:20]} 17. gxh5 {[%clk 0:02:13]}  Nxe5 {[%clk 0:00:18]} 18. hxg6 {[%clk 0:02:02]}  fxg6 {[%clk 0:00:18]} 19. h5 {[%clk 0:02:02]}  Nxf3 {[%clk 0:00:17]} 20. Qg2 {[%clk 0:01:54]}  d4 {[%clk 0:00:16]} 21. h6 {[%clk 0:00:53]}  dxc3 {[%clk 0:00:14]} 22. hxg7 {[%clk 0:00:50]}  Qxg7 {[%clk 0:00:14]} 23. Bh6 {[%clk 0:00:50]}  Qf7 {[%clk 0:00:13]} 24. Bxf8 {[%clk 0:00:47]}  Kxf8 {[%clk 0:00:12]} 25. Rhf1 {[%clk 0:00:42]}  Nd2+ {[%clk 0:00:10]} 26. Rxd2 {[%clk 0:00:39]}  cxd2 {[%clk 0:00:09]} 27. Rxf7+ {[%clk 0:00:38]}  Kxf7 {[%clk 0:00:10]} 28. Qxd2 {[%clk 0:00:39]}  Ba6 {[%clk 0:00:09]} 29. Qd7+ {[%clk 0:00:37]}  Kf6 {[%clk 0:00:04]} 30. Qxe6+ {[%clk 0:00:37]} 1-0


[Site "https://www.chess.com"]